[Event "18th Chefchaouen Open 2019"]
[Site "Chefchaouen"]
[Date "2019.07.15"]
[Round "1.4"]
[White "Karkazi, Aziz"]
[Black "Karpatchev, Aleksandr"]
[Result "0-1"]
[ECO "C60"]
[WhiteElo "1855"]
[BlackElo "2445"]
[Annotator "RC"]
[PlyCount "102"]
[EventDate "2019.07.15"]
[EventType "swiss"]
[EventCountry "MAR"]
[SourceTitle "playchess.com"]
[Source "ChessBase"]
[SourceQuality "1"]
[TimeControl "5400+30"]

1. e4 {[%emt 0:00:00]} e5 {[%emt 0:00:00]} 2. Nf3 {[%emt 0:00:05]} Nc6 {[%emt 0:00:00]} 3. Bb5 {[%emt 0:02:20]} g6 {[%emt 0:02:51]} 4. c3 {[%emt 0:03:35]} a6 {[%emt 0:00:49]} 5. Ba4 {[%emt 0:05:13]} Bg7 {[%emt 0:00:21]} 6. O-O {[%emt 0:01:26]} Nge7 {[%emt 0:01:04]} 7. d4 {[%emt 0:02:19]} exd4 {[%emt 0:00:59]} 8. cxd4 {[%emt 0:00:04]} b5 {[%emt 0:00:05]} 9. Bb3 {[%emt 0:01:29]} Na5 {[%emt 0:00:06]} 10. Bc2 {[%emt 0:02:05]} d6 {[%emt 0:00:19]} 11. h3 {[%emt 0:01:58]} O-O {[%emt 0:00:26]} 12. b3 {[%emt 0:06:44]} c5 {[%emt 0:00:43]} 13. Bg5 {[%emt 0:05:06]} Nac6 {[%emt 0:01:56]} 14. Be3 {[%emt 0:01:15]} Qb6 {[%emt 0:03:22]} 15. dxc5 {[%emt 0:08:10]} dxc5 {[%emt 0:00:42]} 16. Nbd2 {[%emt 0:00:12]} Nd4 {[%emt 0:06:25]} 17. Bxd4 {[%emt 0:05:52]} cxd4 {[%emt 0:00:09]} 18. Bd3 {[%emt 0:00:35]} Bb7 {[%emt 0:00:41]} 19. Re1 {[%emt 0:02:58]} Rac8 {[%emt 0:00:47]} 20. Rc1 {[%emt 0:02:32]} Qa5 {[%emt 0:02:37]} 21. a4 {[%emt 0:02:08]} Rxc1 {[%emt 0:13:59]} 22. Qxc1 {[%emt 0:05:29]} Rc8 {[%emt 0:00:15]} 23. Qa3 {[%emt 0:03:00]} Bf8 {[%emt 0:00:48]} 24. Qd6 {[%emt 0:04:51]} Nc6 {[%emt 0:14:05]} 25. Qf4 {[%emt 0:09:13]} Nb4 {[%emt 0:00:51]} 26. Bb1 {[%emt 0:00:52]} d3 {[%emt 0:01:50]} 27. e5 {[%emt 0:13:00]} Nd5 {[%emt 0:16:38]} 28. Qg4 {[%emt 0:04:57]} Bb4 {[%emt 0:06:31]} 29. e6 {[%emt 0:03:24]} f5 {[%emt 0:00:23]} 30. Qg5 {[%emt 0:00:45]} Be7 {[%emt 0:01:11]} 31. Qh6 {[%emt 0:00:06]} Qc3 {[%emt 0:03:34]} 32. Ng5 {[%emt 0:00:28]} Qg7 {[%emt 0:00:25]} 33. Qxg7+ {[%emt 0:01:15]} Kxg7 {[%emt 0:00:01]} 34. Ngf3 {[%emt 0:00:28]} Nf4 {[%emt 0:01:27]} 35. axb5 {[%emt 0:01:47]} axb5 {[%emt 0:00:01]} 36. Re5 {[%emt 0:00:20]} Ne2+ {[%emt 0:02:28]} 37. Kh2 {[%emt 0:00:27]} Bd6 {[%emt 0:01:31]} 38. Bxd3 {[%emt 0:00:20]} Bxf3 {[%emt 0:00:39]} 39. Nxf3 {[%emt 0:00:07]} Nd4 {[%emt 0:00:09]} 40. Nxd4 {[%emt 0:00:40]} Bxe5+ {[%emt 0:00:06]} 41. f4 {[%emt 0:00:13]} Bxd4 {[%emt 0:00:08]} 42. Bxb5 {[%emt 0:00:04]} Kf6 {[%emt 0:00:18]} 43. Bc4 {[%emt 0:00:05]} Ra8 {[%emt 0:00:18]} 44. g4 {[%emt 0:00:42]} h6 {[%emt 0:01:11]} 45. Kg3 {[%emt 0:00:30]} Ra1 {[%emt 0:00:11]} 46. g5+ {[%emt 0:00:10]} hxg5 {[%emt 0:00:08]} 47. fxg5+ {[%emt 0:00:02]} Kxg5 {[%emt 0:00:49]} 48. h4+ {[%emt 0:01:21]} Kf6 {[%emt 0:00:06]} 49. b4 {[%emt 0:00:19]} Ra4 {[%emt 0:00:21]} 50. e7 {[%emt 0:00:18]} Kxe7 {[%emt 0:00:05]} 51. Kf4 {[%emt 0:00:07]} Kf6 {[%emt 0:00:16]} 0-1

[Event "18th Chefchaouen Open 2019"]
[Site "Chefchaouen"]
[Date "2019.07.16"]
[Round "2.5"]
[White "Roudi, Adnan"]
[Black "Buscara, Sevan"]
[Result "0-1"]
[ECO "A16"]
[WhiteElo "1941"]
[BlackElo "2404"]
[Annotator "RC"]
[PlyCount "68"]
[EventDate "2019.07.15"]
[EventType "swiss"]
[EventCountry "MAR"]
[SourceTitle "playchess.com"]
[Source "ChessBase"]
[SourceQuality "1"]
[TimeControl "5400+30"]

1. c4 {[%emt 0:00:00]} Nf6 {[%emt 0:00:31]} 2. Nc3 {[%emt 0:00:00]} g6 {[%emt 0:00:28]} 3. g3 {[%emt 0:00:08]} d5 {[%emt 0:02:07]} 4. cxd5 {[%emt 0:00:30]} Nxd5 {[%emt 0:00:07]} 5. Bg2 {[%emt 0:00:11]} Nb6 {[%emt 0:00:56]} 6. d3 {[%emt 0:06:09]} Bg7 {[%emt 0:00:13]} 7. Nf3 {[%emt 0:00:57]} Nc6 {[%emt 0:01:12]} 8. Be3 {[%emt 0:01:13]} h6 {[%emt 0:02:08]} 9. Qd2 {[%emt 0:03:40]} e5 {[%emt 0:02:09]} 10. O-O {[%emt 0:09:09]} Nd4 {[%emt 0:02:05]} 11. Ne1 {[%emt 0:01:56]} Nf5 {[%emt 0:07:54]} 12. Bc5 {[%emt 0:04:47]} Nc4 {[%emt 0:00:21]} 13. Qc1 {[%emt 0:07:39]} Ncd6 {[%emt 0:01:41]} 14. f4 {[%emt 0:15:05]} exf4 {[%emt 0:01:51]} 15. Qxf4 {[%emt 0:00:15]} O-O {[%emt 0:03:25]} 16. e4 {[%emt 0:01:10]} Nd4 {[%emt 0:00:51]} 17. Qf2 {[%emt 0:09:09]} Ne6 {[%emt 0:04:26]} 18. Be3 {[%emt 0:00:08]} Ng5 {[%emt 0:01:33]} 19. Qd2 {[%emt 0:00:59]} f5 {[%emt 0:06:47]} 20. Nf3 {[%emt 0:05:45]} Nxf3+ {[%emt 0:04:10]} 21. Rxf3 {[%emt 0:01:32]} Kh7 {[%emt 0:02:19]} 22. Re1 {[%emt 0:11:28]} Re8 {[%emt 0:03:48]} 23. Rff1 {[%emt 0:01:23]} fxe4 {[%emt 0:08:00]} 24. Nxe4 {[%emt 0:01:05]} Nf5 {[%emt 0:00:12]} 25. Bf2 {[%emt 0:02:16]} Nd4 {[%emt 0:03:45]} 26. Nc3 {[%emt 0:03:24]} Rxe1 {[%emt 0:10:07]} 27. Rxe1 {[%emt 0:00:29]} Bf5 {[%emt 0:01:32]} 28. Bxb7 {[%emt 0:03:59]} c6 {[%emt 0:02:30]} 29. Bxd4 {[%emt 0:03:19]} Qxd4+ {[%emt 0:04:01]} 30. Kg2 {[%emt 0:02:20]} Rb8 {[%emt 0:01:40]} 31. Bxc6 {[%emt 0:01:16]} Qb6 {[%emt 0:01:09]} 32. Be4 {[%emt 0:03:29]} Qxb2 {[%emt 0:00:40]} 33. Qxb2 {[%emt 0:01:08]} Rxb2+ {[%emt 0:00:07]} 34. Kf3 {[%emt 0:00:21]} Bxc3 {[%emt 0:00:34]} 0-1

[Event "18th Chefchaouen Open 2019"]
[Site "Chefchaouen"]
[Date "2019.07.16"]
[Round "3.2"]
[White "Salaka, Youssef"]
[Black "Levin, Evgeny A."]
[Result "1-0"]
[ECO "B51"]
[WhiteElo "2105"]
[BlackElo "2504"]
[Annotator "ChessBase"]
[PlyCount "39"]
[EventDate "2019.07.15"]
[EventType "swiss"]
[EventCountry "MAR"]
[SourceTitle "playchess.com"]
[Source "ChessBase"]
[SourceQuality "1"]
[TimeControl "5400+30"]

1. e4 {[%emt 0:02:39]} c5 {[%emt 0:01:26]} 2. Nf3 {[%emt 0:00:17]} d6 {[%emt 0:00:04]} 3. Bb5+ {[%emt 0:00:15]} Nd7 {[%emt 0:00:07]} 4. O-O {[%emt 0:00:13]} a6 {[%emt 0:00:17]} 5. Bxd7+ {[%emt 0:00:09]} Bxd7 {[%emt 0:00:05]} 6. Re1 {[%emt 1:29:27]} Nf6 {[%emt 0:00:52]} 7. c3 {[%emt 0:00:49]} Bg4 {[%emt 0:11:12]} 8. h3 {[%emt 0:06:02]} Bh5 {[%emt 0:02:08]} 9. d3 {[%emt 0:02:42]} e6 {[%emt 0:01:33]} 10. Nbd2 {[%emt 0:00:17]} Be7 {[%emt 0:07:38]} 11. a4 {[%emt 0:00:27]} O-O {[%emt 0:04:34]} 12. Nf1 {[%emt 0:05:05]} Nd7 {[%emt 0:05:31]} 13. Ng3 {[%emt 0:00:22]} Bg6 {[%emt 0:15:24]} 14. a5 {[%emt 0:02:57]} Qc7 {[%emt 0:02:52]} 15. d4 {[%emt 0:11:15]} cxd4 {[%emt 0:01:31]} 16. cxd4 {[%emt 0:00:39]} b6 {[%emt 0:02:32]} 17. Bd2 {[%emt 0:02:10]} Rfb8 {[%emt 0:09:28]} 18. Re3 {[%emt 0:13:02]} bxa5 {[%emt 0:04:07]} 19. Bxa5 {[%emt 0:00:47]} Qb7 {[%emt 0:28:09]} 20. Rc3 {[%emt 0:05:38]} 1-0

[Event "18th Chefchaouen Open 2019"]
[Site "Chefchaouen"]
[Date "2019.07.16"]
[Round "3.5"]
[White "Chorfi, Khaled"]
[Black "Duzhakov, Ilya"]
[Result "0-1"]
[ECO "A13"]
[WhiteElo "2065"]
[BlackElo "2383"]
[Annotator "RC"]
[PlyCount "98"]
[EventDate "2019.07.15"]
[EventType "swiss"]
[EventCountry "MAR"]
[SourceTitle "playchess.com"]
[Source "ChessBase"]
[SourceQuality "1"]
[TimeControl "5400+30"]

1. c4 {[%emt 0:00:00]} Nf6 {[%emt 0:00:58]} 2. g3 {[%emt 0:01:07]} e6 {[%emt 0:00:41]} 3. Bg2 {[%emt 0:00:20]} d5 {[%emt 0:00:08]} 4. Nf3 {[%emt 0:02:40]} Be7 {[%emt 0:03:28]} 5. b3 {[%emt 0:04:20]} c5 {[%emt 0:07:05]} 6. Bb2 {[%emt 0:04:33]} d4 {[%emt 0:06:25]} 7. d3 {[%emt 0:06:18]} Nc6 {[%emt 0:01:47]} 8. Nbd2 {[%emt 0:03:47]} O-O {[%emt 0:01:05]} 9. O-O {[%emt 0:00:36]} e5 {[%emt 0:05:59]} 10. a3 {[%emt 0:07:09]} h6 {[%emt 0:03:21]} 11. Ne1 {[%emt 0:13:57]} Bf5 {[%emt 0:08:15]} 12. Ne4 {[%emt 0:02:06]} Qd7 {[%emt 0:08:05]} 13. Nxf6+ {[%emt 0:08:42]} Bxf6 {[%emt 0:00:31]} 14. e4 {[%emt 0:00:09]} dxe3 {[%emt 0:04:30]} 15. fxe3 {[%emt 0:00:18]} Rad8 {[%emt 0:01:11]} 16. e4 {[%emt 0:04:40]} Bg4 {[%emt 0:05:55]} 17. Bf3 {[%emt 0:00:56]} Bh3 {[%emt 0:02:15]} 18. Bg2 {[%emt 0:04:49]} Be6 {[%emt 0:01:24]} 19. Kh1 {[%emt 0:00:41]} Bg5 {[%emt 0:02:17]} 20. Qe2 {[%emt 0:04:51]} Rde8 {[%emt 0:19:31]} 21. b4 {[%emt 0:03:56]} cxb4 {[%emt 0:06:19]} 22. axb4 {[%emt 0:00:16]} Nxb4 {[%emt 0:01:04]} 23. Rxa7 {[%emt 0:04:31]} Ra8 {[%emt 0:00:47]} 24. Rxa8 {[%emt 0:02:27]} Rxa8 {[%emt 0:00:02]} 25. Bc3 {[%emt 0:02:22]} Ra2 {[%emt 0:05:39]} 26. Qd1 {[%emt 0:00:18]} Nc6 {[%emt 0:00:25]} 27. Qb1 {[%emt 0:00:45]} Ra8 {[%emt 0:01:35]} 28. Qb2 {[%emt 0:06:31]} f6 {[%emt 0:00:10]} 29. Qf2 {[%emt 0:02:27]} Bc1 {[%emt 0:01:21]} 30. Nf3 {[%emt 0:00:39]} Ba3 {[%emt 0:00:01]} 31. Qc2 {[%emt 0:02:06]} Bc5 {[%emt 0:00:41]} 32. Ne1 {[%emt 0:04:07]} b6 {[%emt 0:01:22]} 33. h4 {[%emt 0:00:31]} Ra6 {[%emt 0:00:50]} 34. Nf3 {[%emt 0:00:31]} Qa7 {[%emt 0:00:25]} 35. Rb1 {[%emt 0:00:20]} Qd7 {[%emt 0:00:48]} 36. Kh2 {[%emt 0:00:10]} Ra8 {[%emt 0:00:10]} 37. Qe2 {[%emt 0:00:41]} Rd8 {[%emt 0:00:04]} 38. Ne1 {[%emt 0:00:08]} Ra8 {[%emt 0:01:29]} 39. Qb2 {[%emt 0:02:36]} Kh7 {[%emt 0:00:28]} 40. Qe2 {[%emt 0:00:13]} Ra3 {[%emt 0:00:27]} 41. Rc1 {[%emt 0:00:22]} Bd4 {[%emt 0:00:16]} 42. Bd2 {[%emt 0:00:32]} Ra2 {[%emt 0:00:15]} 43. Rc2 {[%emt 0:00:12]} Bg1+ {[%emt 0:00:55]} 44. Kxg1 {[%emt 0:00:15]} Nd4 {[%emt 0:00:01]} 45. Qd1 {[%emt 0:00:40]} Nxc2 {[%emt 0:00:01]} 46. Qb1 {[%emt 0:01:13]} Qd4+ {[%emt 0:00:45]} 47. Kh2 {[%emt 0:00:20]} Nxe1 {[%emt 0:00:07]} 48. Bxe1 {[%emt 0:00:43]} Ra1 {[%emt 0:00:14]} 49. Qb4 {[%emt 0:00:06]} Qe3 {[%emt 0:00:26]} 0-1

[Event "18th Chefchaouen Open 2019"]
[Site "Chefchaouen"]
[Date "2019.07.16"]
[Round "3.6"]
[White "Gorbatov, Alexej"]
[Black "Alami, Halim"]
[Result "*"]
[ECO "B01"]
[WhiteElo "2374"]
[BlackElo "2041"]
[Annotator "ChessBase"]
[PlyCount "47"]
[EventDate "2019.07.15"]
[EventType "swiss"]
[EventCountry "MAR"]
[SourceTitle "playchess.com"]
[Source "ChessBase"]
[SourceQuality "1"]
[TimeControl "5400+30"]

1. e4 {[%emt 1:30:30]} d5 {[%emt 1:30:30]} 2. exd5 {[%emt 0:00:30]} Qxd5 {[%emt 0:00:30]} 3. Nc3 {[%emt 0:00:30]} Qa5 {[%emt 0:00:30]} 4. Bc4 {[%emt 0:00:30]} Nf6 {[%emt 0:00:30]} 5. h3 {[%emt 0:00:30]} Bf5 {[%emt 0:00:30]} 6. Nf3 {[%emt 0:00:30]} e6 {[%emt 0:00:30]} 7. O-O {[%emt 0:00:30]} Be7 {[%emt 0:00:30]} 8. d3 {[%emt 0:00:30]} c6 {[%emt 0:00:30]} 9. Bd2 {[%emt 0:00:30]} Qc7 {[%emt 0:00:30]} 10. Nd4 {[%emt 0:00:30]} O-O {[%emt 0:00:30]} 11. Nxf5 {[%emt 0:00:30]} exf5 {[%emt 0:00:30]} 12. Qf3 {[%emt 0:00:30]} g6 {[%emt 0:00:30]} 13. Rae1 {[%emt 0:00:30]} Kg7 {[%emt 0:00:30]} 14. Bg5 {[%emt 0:00:30]} h6 {[%emt 0:00:30]} 15. Bxh6+ {[%emt 0:00:30]} Kxh6 {[%emt 0:00:30]} 16. Qe3+ {[%emt 0:00:30]} Kg7 {[%emt 0:00:30]} 17. Qxe7 {[%emt 0:00:30]} Qxe7 {[%emt 0:00:30]} 18. Re3 {[%emt 0:00:30]} Qe6 19. Rxe6 Nbd7 {[%emt 0:01:00]} 20. Re7 Rad8 {[%emt 0:00:30]} 21. a3 Ng8 {[%emt 0:00:30]} 22. Rfe1 Ngf6 {[%emt 0:00:30]} 23. R7e2 Rfe8 {[%emt 0:00:30]} 24. Ba2 *

[Event "18th Chefchaouen Open 2019"]
[Site "Chefchaouen"]
[Date "2019.07.16"]
[Round "3.6"]
[White "Gorbatov, Alexej"]
[Black "Alami, Halim"]
[Result "1-0"]
[ECO "B01"]
[WhiteElo "2374"]
[BlackElo "2041"]
[Annotator "RC"]
[PlyCount "109"]
[EventDate "2019.07.15"]
[EventType "swiss"]
[EventCountry "MAR"]
[SourceTitle "playchess.com"]
[Source "ChessBase"]
[SourceQuality "1"]
[TimeControl "5400+30"]

1. e4 {[%emt 1:30:30]} d5 {[%emt 1:30:30]} 2. exd5 {[%emt 0:00:30]} Qxd5 {[%emt 0:00:30]} 3. Nc3 {[%emt 0:00:30]} Qa5 {[%emt 0:00:30]} 4. Bc4 {[%emt 0:00:30]} Nf6 {[%emt 0:00:30]} 5. h3 {[%emt 0:00:30]} Bf5 {[%emt 0:00:30]} 6. Nf3 {[%emt 0:00:30]} e6 {[%emt 0:00:30]} 7. O-O {[%emt 0:00:30]} Be7 {[%emt 0:00:30]} 8. d3 {[%emt 0:00:30]} c6 {[%emt 0:00:30]} 9. Bd2 {[%emt 0:00:30]} Qc7 {[%emt 0:00:30]} 10. Nd4 {[%emt 0:00:30]} O-O {[%emt 0:00:30]} 11. Nxf5 {[%emt 0:00:30]} exf5 {[%emt 0:00:30]} 12. Qf3 {[%emt 0:00:30]} g6 {[%emt 0:00:30]} 13. Rae1 {[%emt 0:00:30]} Kg7 {[%emt 0:00:30]} 14. Bg5 {[%emt 0:00:30]} h6 {[%emt 0:00:30]} 15. Bxh6+ {[%emt 0:00:30]} Kxh6 {[%emt 0:00:30]} 16. Qe3+ {[%emt 0:00:30]} Kg7 {[%emt 0:00:30]} 17. Qxe7 {[%emt 0:00:30]} Qxe7 {[%emt 0:00:30]} 18. Rxe7 Nbd7 {[%emt 0:00:30]} 19. a3 {[%emt 0:01:00]} Rad8 {[%emt 0:00:30]} 20. Rfe1 {[%emt 0:00:30]} Ng8 {[%emt 0:00:30]} 21. R7e2 {[%emt 0:00:30]} Ngf6 {[%emt 0:00:30]} 22. Ba2 {[%emt 0:00:30]} Rfe8 {[%emt 0:00:30]} 23. Rxe8 {[%emt 0:00:30]} Rxe8 {[%emt 0:00:30]} 24. Rxe8 {[%emt 0:00:30]} Nxe8 {[%emt 0:00:30]} 25. f4 {[%emt 0:00:30]} Nd6 {[%emt 0:00:30]} 26. Kf2 {[%emt 0:00:30]} Kh6 {[%emt 0:00:30]} 27. Ke3 {[%emt 0:00:30]} Kg7 {[%emt 0:00:30]} 28. b4 {[%emt 0:00:30]} Kf6 {[%emt 0:00:30]} 29. Bb3 {[%emt 0:00:30]} Ke7 {[%emt 0:00:30]} 30. Nb1 {[%emt 0:00:30]} Kd8 {[%emt 0:00:30]} 31. Nd2 {[%emt 0:00:30]} b6 {[%emt 0:00:30]} 32. Nf3 {[%emt 0:00:30]} f6 {[%emt 0:00:30]} 33. Nd4 {[%emt 0:00:30]} c5 {[%emt 0:00:30]} 34. Nc6+ {[%emt 0:00:30]} Kc7 {[%emt 0:00:30]} 35. Ne7 {[%emt 0:00:30]} Nf8 {[%emt 0:00:30]} 36. bxc5 {[%emt 0:00:30]} bxc5 {[%emt 0:00:30]} 37. Nd5+ {[%emt 0:00:30]} Kd8 {[%emt 0:00:30]} 38. Nxf6 {[%emt 0:00:30]} Nb5 {[%emt 0:00:30]} 39. a4 {[%emt 0:00:30]} Nd4 {[%emt 0:00:30]} 40. Kd2 {[%emt 0:00:30]} Ke7 {[%emt 0:00:30]} 41. Nd5+ {[%emt 0:00:30]} Kd6 {[%emt 0:00:30]} 42. Ne3 {[%emt 0:00:30]} Ke7 {[%emt 0:00:30]} 43. Bc4 {[%emt 0:00:30]} Kf6 {[%emt 0:00:30]} 44. c3 {[%emt 0:00:30]} Nde6 {[%emt 0:00:30]} 45. Nd5+ {[%emt 0:00:30]} Kg7 {[%emt 0:00:30]} 46. Ke3 {[%emt 0:00:30]} g5 {[%emt 0:00:30]} 47. fxg5 {[%emt 0:00:30]} Ng6 {[%emt 0:00:30]} 48. g3 {[%emt 0:00:30]} Nxg5 {[%emt 0:00:30]} 49. Nf4 {[%emt 0:00:30]} Ne5 {[%emt 0:00:30]} 50. Bd5 {[%emt 0:00:30]} Kf6 {[%emt 0:00:30]} 51. d4 {[%emt 0:00:30]} Nd7 {[%emt 0:00:30]} 52. a5 {[%emt 0:00:30]} cxd4+ {[%emt 0:00:30]} 53. Kxd4 {[%emt 0:00:30]} Ke7 {[%emt 0:00:30]} 54. h4 {[%emt 0:00:30]} Nf7 {[%emt 0:00:30]} 55. Ng6+ {[%emt 0:00:30]} 1-0

[Event "18th Chefchaouen Open 2019"]
[Site "Chefchaouen"]
[Date "2019.07.17"]
[Round "5.1"]
[White "Korneev, Oleg"]
[Black "Duzhakov, Ilya"]
[Result "1/2-1/2"]
[ECO "B90"]
[WhiteElo "2523"]
[BlackElo "2383"]
[Annotator "ChessBase"]
[PlyCount "92"]
[EventDate "2019.07.15"]
[EventType "swiss"]
[EventCountry "MAR"]
[SourceTitle "playchess.com"]
[Source "ChessBase"]
[SourceQuality "1"]
[TimeControl "5400+30"]

1. e4 {[%emt 0:14:20]} c5 {[%emt 0:00:00]} 2. Nf3 {[%emt 0:00:06]} d6 {[%emt 0:00:00]} 3. d4 {[%emt 0:00:01]} cxd4 {[%emt 0:00:03]} 4. Nxd4 {[%emt 0:00:01]} Nf6 {[%emt 0:00:10]} 5. Nc3 {[%emt 0:00:02]} a6 {[%emt 0:00:08]} 6. f3 {[%emt 0:00:02]} e5 {[%emt 0:00:23]} 7. Nb3 {[%emt 0:00:09]} Be6 {[%emt 0:01:03]} 8. Be3 {[%emt 0:00:03]} Be7 {[%emt 0:00:07]} 9. Qd2 {[%emt 0:00:02]} O-O {[%emt 0:00:10]} 10. O-O-O {[%emt 0:00:04]} Nbd7 {[%emt 0:00:04]} 11. g4 {[%emt 0:00:06]} b5 {[%emt 0:00:06]} 12. Kb1 {[%emt 0:00:03]} b4 {[%emt 0:03:07]} 13. Nd5 {[%emt 0:01:04]} Bxd5 {[%emt 0:00:29]} 14. exd5 {[%emt 0:00:03]} Nb6 {[%emt 0:02:30]} 15. Na5 {[%emt 0:44:37]} Nbxd5 {[%emt 0:04:25]} 16. Nc6 {[%emt 0:01:29]} Qc7 {[%emt 0:01:36]} 17. Nxe7+ {[%emt 0:00:09]} Qxe7 {[%emt 0:00:50]} 18. Bg5 {[%emt 0:09:31]} Qc7 {[%emt 0:34:15]} 19. Bd3 {[%emt 0:03:12]} Rab8 {[%emt 0:15:20]} 20. Ka1 {[%emt 0:04:52]} Rb6 {[%emt 0:02:10]} 21. h4 {[%emt 0:00:20]} a5 {[%emt 0:08:05]} 22. h5 {[%emt 0:00:51]} a4 {[%emt 0:01:02]} 23. Bxf6 {[%emt 0:02:05]} Nxf6 {[%emt 0:00:17]} 24. g5 {[%emt 0:00:06]} Ne8 {[%emt 0:01:22]} 25. Be4 {[%emt 0:05:07]} f5 {[%emt 0:00:38]} 26. Bd5+ {[%emt 0:00:25]} Kh8 {[%emt 0:00:02]} 27. h6 {[%emt 0:00:14]} g6 {[%emt 0:01:35]} 28. f4 {[%emt 0:00:03]} Qc5 {[%emt 0:00:58]} 29. b3 {[%emt 0:08:35]} Nc7 {[%emt 0:09:01]} 30. bxa4 {[%emt 0:00:03]} Nxd5 {[%emt 0:06:50]} 31. Qxd5 {[%emt 0:00:02]} Qxc2 {[%emt 0:00:16]} 32. Rc1 {[%emt 0:00:31]} Qe4 {[%emt 0:00:21]} 33. Qxe4 {[%emt 0:01:12]} fxe4 {[%emt 0:00:02]} 34. fxe5 {[%emt 0:00:15]} dxe5 {[%emt 0:00:05]} 35. Rhe1 {[%emt 0:00:31]} Ra6 {[%emt 0:01:07]} 36. Rxe4 {[%emt 0:00:27]} Rxa4 {[%emt 0:00:03]} 37. Rc7 {[%emt 0:01:08]} Raa8 {[%emt 0:06:11]} 38. Rxb4 {[%emt 0:01:17]} Rac8 {[%emt 0:00:06]} 39. Rxc8 {[%emt 0:00:42]} Rxc8 {[%emt 0:00:01]} 40. a4 {[%emt 0:00:31]} Kg8 {[%emt 0:00:05]} 41. Rb7 {[%emt 0:01:48]} Ra8 {[%emt 0:01:16]} 42. Kb2 {[%emt 0:03:39]} Rxa4 {[%emt 0:00:49]} 43. Rg7+ {[%emt 0:00:12]} Kh8 {[%emt 0:00:08]} 44. Re7 {[%emt 0:00:06]} Ra8 {[%emt 0:00:42]} 45. Kc3 {[%emt 0:00:11]} Rd8 {[%emt 0:00:21]} 46. Rxe5 {[%emt 0:00:05]} Kg8 {[%emt 0:04:41]} 1/2-1/2

[Event "18th Chefchaouen Open 2019"]
[Site "Chefchaouen"]
[Date "2019.07.17"]
[Round "5.4"]
[White "ouaziz ismail"]
[Black "Karpatchev, Aleksandr"]
[Result "0-1"]
[ECO "C55"]
[WhiteElo "2011"]
[BlackElo "2445"]
[Annotator "NA"]
[PlyCount "97"]
[EventDate "2019.07.15"]
[EventType "swiss"]
[EventCountry "MAR"]
[SourceTitle "playchess.com"]
[Source "ChessBase"]
[SourceQuality "1"]
[TimeControl "5400+30"]

1. e4 {[%emt 0:03:51]} e5 {[%emt 0:00:00]} 2. Nf3 {[%emt 0:00:08]} Nc6 {[%emt 0:00:00]} 3. Bc4 {[%emt 0:00:14]} Nf6 {[%emt 0:00:25]} 4. d3 {[%emt 0:00:23]} h6 {[%emt 0:00:32]} 5. O-O {[%emt 0:00:53]} d6 {[%emt 0:00:12]} 6. a4 {[%emt 0:02:06]} g5 {[%emt 0:01:07]} 7. c3 {[%emt 0:02:34]} Bg7 {[%emt 0:00:21]} 8. Re1 {[%emt 0:02:49]} O-O {[%emt 0:07:01]} 9. Nbd2 {[%emt 0:00:38]} g4 {[%emt 0:02:31]} 10. Nh4 {[%emt 0:00:49]} Nxe4 {[%emt 0:00:14]} 11. dxe4 {[%emt 0:02:25]} Qxh4 {[%emt 0:00:19]} 12. Nf1 {[%emt 0:00:34]} Ne7 {[%emt 0:06:42]} 13. Be3 {[%emt 0:02:04]} Qf6 {[%emt 0:03:51]} 14. Qd2 {[%emt 0:03:48]} Qg6 {[%emt 0:01:17]} 15. Ng3 {[%emt 0:02:05]} Kh8 {[%emt 0:09:12]} 16. a5 {[%emt 0:05:40]} a6 {[%emt 0:00:40]} 17. b4 {[%emt 0:00:40]} h5 {[%emt 0:02:04]} 18. Bd3 {[%emt 0:05:51]} h4 {[%emt 0:02:09]} 19. Bg5 {[%emt 0:03:18]} hxg3 {[%emt 0:05:03]} 20. Bxe7 {[%emt 0:00:23]} Bh6 {[%emt 0:01:29]} 21. Qc2 {[%emt 0:03:04]} gxh2+ {[%emt 0:00:16]} 22. Kh1 {[%emt 0:00:37]} Rg8 {[%emt 0:05:46]} 23. Bh4 {[%emt 0:01:48]} Qh5 {[%emt 0:01:45]} 24. g3 {[%emt 0:00:30]} Kg7 {[%emt 0:49:04]} 25. c4 {[%emt 0:06:49]} Bg5 {[%emt 0:00:00]} 26. Bxg5 {[%emt 0:00:26]} Qxg5 {[%emt 0:00:00]} 27. b5 {[%emt 0:01:21]} Be6 {[%emt 0:00:00]} 28. c5 {[%emt 0:01:21]} Qf6 {[%emt 0:00:00]} 29. Qe2 {[%emt 0:08:10]} axb5 {[%emt 0:00:00]} 30. cxd6 {[%emt 0:00:56]} cxd6 {[%emt 0:00:00]} 31. Bxb5 {[%emt 0:00:37]} Rgc8 {[%emt 0:00:00]} 32. Bd3 {[%emt 0:05:17]} Rc3 {[%emt 0:00:00]} 33. Reb1 {[%emt 0:04:54]} Rac8 {[%emt 0:00:00]} 34. Rf1 {[%emt 0:03:38]} Qf3+ {[%emt 0:00:00]} 35. Qxf3 {[%emt 0:02:02]} gxf3 {[%emt 0:00:00]} 36. Rfd1 {[%emt 0:01:07]} Bh3 {[%emt 0:00:00]} 37. Bf1 {[%emt 0:00:13]} Bxf1 {[%emt 0:00:00]} 38. Rxf1 {[%emt 0:00:17]} Kf6 {[%emt 0:00:00]} 39. Rab1 {[%emt 0:00:53]} R8c7 {[%emt 0:00:20]} 40. Rb6 {[%emt 0:09:53]} Rd3 {[%emt 0:00:53]} 41. Kxh2 {[%emt 0:03:23]} Kg5 {[%emt 0:00:17]} 42. Rfb1 {[%emt 0:01:19]} Rd2 {[%emt 0:00:35]} 43. Kg1 {[%emt 0:00:15]} Rcc2 {[%emt 0:01:37]} 44. Rf1 {[%emt 0:00:27]} f5 {[%emt 0:00:22]} 45. exf5 {[%emt 0:00:22]} e4 {[%emt 0:00:22]} 46. Rxb7 {[%emt 0:04:29]} e3 {[%emt 0:06:34]} 47. a6 {[%emt 0:08:09]} e2 {[%emt 0:00:30]} 48. Re1 {[%emt 0:00:30]} Rd1 {[%emt 0:00:30]} 49. Rb1 {[%emt 0:00:30]} 0-1